fUSD/lending_fUSD_20240630
["ID","MTS","AMOUNT","RATE_DAILY","PERIOD"]
[330729606,1719741033036,-169.86,0.00012311,2]
[330729607,1719741033045,-224.99,0.00012311,2]
[330729608,1719741033055,-521.69920821,0.00012314,2]
[330729609,1719741033064,-150.0,0.00012329,2]
[330729610,1719741033074,-250.0,0.00012341,2]
[330729611,1719741033084,-443.59,0.00012345,2]
[330729612,1719741033093,-150.99,0.00012345,2]
[330729613,1719741033103,-1068.44,0.00012345,2]
[330729614,1719741033112,-150.0,0.0001236,2]
[330729615,1719741033122,-500.0,0.0001236,2]
[330729616,1719741033131,-2781.27,0.0001236,2]
[330729617,1719741033142,-797.04,0.00012376,2]
[330729618,1719741033151,-250.0,0.00012418,2]
[330729619,1719741033160,-481.87186993,0.0001251,2]
[330729620,1719741033170,-167.43,0.00012596,2]
[330729621,1719741033180,-515.54,0.00012597,2]
[330729622,1719741033190,-150.0,0.000126,2]
[330729623,1719741033199,-429.83,0.00012685,2]
[330729624,1719741033209,-429.83,0.0001272,2]
[330729625,1719741033219,-193.85,0.0001274,2]
[330729626,1719741033230,-429.83,0.00012755,2]
[330729627,1719741033239,-429.83,0.0001279,2]
[330729628,1719741033249,-429.83,0.00012824,2]
[330729629,1719741033260,-429.83,0.00012859,2]
[330729630,1719741033269,-429.83,0.00012894,2]
[330729631,1719741033279,-150.99,0.00012914,2]
[330729632,1719741033288,-429.83,0.00012929,2]
[330729633,1719741033297,-429.83,0.00012964,2]
[330729634,1719741033308,-1000.0,0.00012975,2]
[330729635,1719741033317,-429.83,0.00012998,2]
[330729636,1719741033328,-429.83,0.00013033,2]
[330729637,1719741033338,-429.83,0.00013068,2]
[330729638,1719741033348,-429.83,0.00013103,2]
[330729639,1719741033357,-429.83,0.00013138,2]
[330729640,1719741033367,-429.83,0.00013172,2]
[330729641,1719741033376,-429.83,0.00013207,2]
[330729642,1719741033385,-429.83,0.00013242,2]
[330729643,1719741033395,-429.83,0.00013277,2]
[330729644,1719741033405,-429.83,0.00013312,2]
[330729645,1719741033414,-429.83,0.00013346,2]
[330729646,1719741033424,-155.97353947,0.00013472,2]
[330729647,1719741033433,-200.0,0.000135,4]
[330729648,1719741033442,-202.60743372,0.00013516,2]
[330729649,1719741033452,-155.0,0.00013516,2]
[330729650,1719741033461,-587.0,0.00013517,2]
[330729651,1719741033471,-500.0,0.000136,4]
[330729652,1719741033480,-173.22,0.00013634,2]
[330729653,1719741033490,-3916.08,0.00013643,2]
[330729654,1719741033499,-366.49,0.00013699,2]
[330729655,1719741033510,-880.73,0.00013699,2]
[330729656,1719741033519,-200.0,0.00013699,2]
[330729657,1719741033529,-800.0,0.000137,5]
[330729658,1719741033538,-410.78672007,0.00013717,2]
[330729659,1719741033549,-1000.0,0.000138,5]
[330729660,1719741033558,-2732.92602522,0.00013801,2]
[330729661,1719741033569,-187.75,0.00013809,2]
[330729662,1719741033578,-219.62,0.0001389,3]
[330729663,1719741033588,-4840.08859233,0.00013895,2]
[330729664,1719741033597,-4981.45812281,0.00013895,2]
[330729665,1719741033607,-3225.3218,0.00013896,2]
[330729666,1719741033616,-165.2105,0.00013896,2]
[330729667,1719741033626,-2087.5524,0.00013896,2]
[330729668,1719741033635,-321.93355794,0.00013896,2]
[330729669,1719741033645,-500.0,0.00013897,2]
[330729670,1719741033654,-1000.0,0.00013897,2]
[330729671,1719741033664,-623.0705,0.00013897,2]
[330729672,1719741033673,-425.5106,0.00013897,2]
[330729673,1719741033684,-1396.1762,0.00013897,2]
[330729674,1719741033694,-166.6470464,0.00013898,2]
[330729675,1719741033703,-1389.9544,0.00013898,2]
[330729676,1719741033713,-174.028,0.00013898,2]
[330729677,1719741033722,-1300.0,0.000139,5]
[330729678,1719741033732,-269.96438135,0.000139,2]
[330729679,1719741033741,-721.11,0.00013985,2]
[330729680,1719741033750,-721.11,0.00013985,2]
[330729681,1719741033760,-721.11,0.00013986,2]
[330729682,1719741033771,-500.0,0.00013994,3]
[330729683,1719741033783,-1040.67,0.00013994,3]
[330729684,1719741033794,-500.0,0.00013994,3]
[330729685,1719741033805,-722.49,0.00013994,3]
[330729686,1719741033817,-132.28356098,0.00013994,3]
[330729687,1719741033877,-171.97890948,0.00013989,2]
[330729688,1719741033890,-977.43643902,0.00013994,3]
[330729689,1719741033905,-500.0,0.00013994,3]
[330729690,1719741033914,-1377.64,0.00013994,3]
[330729691,1719741033924,-794.0,0.00013994,3]
[330729692,1719741033935,-1155.21,0.00013994,3]
[330729693,1719741033944,-500.0,0.00013994,3]
[330729694,1719741033955,-424.64247616,0.00013995,3]
[330729695,1719741033969,-75.35752384,0.00013995,3]
[330729696,1719741033980,-500.0,0.00013995,3]
[330729697,1719741033992,-372.2119812,0.00013995,3]
[330729698,1719741034005,-127.7880188,0.00013995,3]
[330729699,1719741034015,-500.0,0.00013995,3]
[330729700,1719741034024,-500.0,0.00013995,3]
[330729701,1719741034034,-500.0,0.00013995,3]
[330729702,1719741034044,-1033.6,0.00013995,3]
[330729703,1719741034054,-500.0,0.00013995,3]
[330729704,1719741034063,-500.0,0.00013995,3]
[330729705,1719741034074,-500.0,0.00013995,3]
[330729706,1719741034084,-513.94,0.00013995,3]
[330729707,1719741034093,-500.0,0.00013995,3]
[330729708,1719741034103,-821.36,0.00013995,3]
[330729709,1719741034113,-500.0,0.00013995,3]
[330729710,1719741034123,-584.93444343,0.00013995,3]
[330729711,1719741034133,-500.0,0.00013995,3]
[330729712,1719741034142,-500.0,0.00013995,3]
[330729713,1719741034153,-500.0,0.00013995,3]
[330729714,1719741034162,-500.0,0.00013995,3]
[330729715,1719741034171,-1126.74,0.00013995,3]
[330729716,1719741034180,-500.0,0.00013995,3]
[330729717,1719741034190,-500.0,0.00013995,3]
[330729718,1719741034199,-500.0,0.00013995,3]
[330729719,1719741034209,-500.0,0.00013995,3]
[330729720,1719741034218,-509.6,0.00013995,3]
[330729721,1719741034228,-500.0,0.00013995,3]
[330729722,1719741034237,-500.0,0.00013995,3]
[330729723,1719741034246,-870.34,0.00013995,3]
[330729724,1719741034256,-500.0,0.00013995,3]
[330729725,1719741034265,-500.0,0.00013995,3]
[330729726,1719741034274,-500.0,0.00013995,3]
[330729727,1719741034287,-500.0,0.00013995,3]
[330729728,1719741034297,-1272.36,0.00013995,3]
[330729729,1719741034307,-500.0,0.00013995,3]
[330729730,1719741034317,-666.74,0.00013995,3]
[330729731,1719741034326,-500.0,0.00013995,3]
[330729732,1719741034335,-500.0,0.00013995,3]
[330729733,1719741034345,-513.02,0.00013995,3]
[330729734,1719741034356,-1003.0,0.00013995,3]
[330729735,1719741034365,-500.0,0.00013995,3]
[330729736,1719741034375,-500.0,0.00013995,3]
[330729737,1719741034385,-500.0,0.00013995,3]
[330729738,1719741034394,-880.22,0.00013995,3]
[330729739,1719741034404,-500.0,0.00013995,3]
[330729740,1719741034413,-943.34,0.00013995,3]
[330729741,1719741034422,-500.0,0.00013995,3]
[330729742,1719741034431,-473.73320991,0.00013995,3]
[330729743,1719741034442,-500.0,0.00013995,3]
[330729744,1719741034451,-500.0,0.00013995,3]
[330729745,1719741034460,-500.0,0.00013995,3]
[330729746,1719741034469,-1155.62,0.00013995,3]
[330729747,1719741034478,-500.0,0.00013995,3]
[330729748,1719741034488,-500.0,0.00013995,3]
[330729749,1719741034497,-500.0,0.00013995,3]
[330729750,1719741034508,-500.0,0.00013995,3]
[330729751,1719741034517,-804.81,0.00013995,3]
[330729752,1719741034526,-500.0,0.00013995,3]
[330729753,1719741034535,-500.0,0.00013995,3]
[330729754,1719741034545,-632.88,0.00013995,3]
[330729755,1719741034554,-500.0,0.00013995,3]
[330729756,1719741034563,-500.0,0.00013995,3]
[330729757,1719741034573,-500.0,0.00013995,3]
[330729758,1719741034582,-172.93061085,0.00013995,3]
[330729759,1719741034591,-883.69,0.00013995,3]
[330729760,1719741034601,-500.0,0.00013995,3]
[330729761,1719741034610,-500.0,0.00013995,3]
[330729762,1719741034890,-835.23,0.00013995,3]
[330729763,1719741034901,-500.0,0.00013995,3]
[330729764,1719741034911,-500.0,0.00013995,3]
[330729765,1719741034921,-500.0,0.00013995,3]
[330729766,1719741034930,-500.0,0.00013995,3]
[330729767,1719741034941,-500.0,0.00013995,3]
[330729768,1719741034950,-499.06049672,0.00013995,3]
[330729769,1719741034960,-784.31,0.00013995,3]
[330729770,1719741034969,-981.1,0.00013995,3]
[330729771,1719741034980,-1073.88,0.00013995,3]
[330729772,1719741034990,-500.0,0.00013995,3]
[330729773,1719741034999,-749.06,0.00013995,3]
[330729774,1719741035010,-549.92,0.00013995,3]
[330729775,1719741035019,-500.0,0.00013995,3]
[330729776,1719741035028,-980.86,0.00013995,3]
[330729777,1719741035037,-500.0,0.00013995,3]
[330729778,1719741035047,-859.94,0.00013995,3]
[330729779,1719741035056,-520.74,0.00013995,3]
[330729780,1719741035066,-500.0,0.00013995,3]
[330729781,1719741035075,-732.22,0.00013995,3]
[330729782,1719741035084,-599.69,0.00013995,3]
[330729783,1719741035094,-500.0,0.00013995,3]
[330729784,1719741035105,-500.0,0.00013995,3]
[330729785,1719741035114,-500.0,0.00013995,3]
[330729786,1719741035124,-672.23,0.00013995,3]
[330729787,1719741035133,-573.41,0.00013995,3]
[330729788,1719741035143,-572.53,0.00013995,3]
[330729789,1719741035152,-539.29,0.00013995,2]
[330729790,1719741035161,-500.0,0.00013995,2]
[330729791,1719741035170,-500.0,0.00013995,3]
[330729792,1719741035180,-500.0,0.00013995,3]
[330729793,1719741035189,-746.05,0.00013995,3]
[330729794,1719741035198,-500.0,0.00013995,3]
[330729795,1719741035207,-500.0,0.00013995,3]
[330729796,1719741035216,-500.0,0.00013995,3]
[330729797,1719741035225,-619.53,0.00013995,3]
[330729798,1719741035235,-500.0,0.00013995,3]
[330729799,1719741035243,-500.0,0.00013995,3]
[330729800,1719741035254,-500.0,0.00013995,3]
[330729801,1719741035264,-500.0,0.00013995,3]
[330729802,1719741035273,-500.0,0.00013995,3]
[330729803,1719741035283,-755.78,0.00013995,3]
[330729804,1719741035294,-890.62,0.00013995,3]
[330729805,1719741035304,-500.0,0.00013995,3]
[330729806,1719741035316,-500.0,0.00013995,3]
[330729807,1719741035325,-500.0,0.00013995,3]
[330729808,1719741035335,-736.53,0.00013995,3]
[330729809,1719741035345,-500.0,0.00013995,3]
[330729810,1719741035354,-500.0,0.00013995,3]
[330729811,1719741035364,-500.0,0.00013995,3]
[330729812,1719741035374,-500.0,0.00013995,3]
[330729813,1719741035383,-500.0,0.00013995,3]
[330729814,1719741035393,-500.0,0.00013995,3]
[330729815,1719741035403,-500.0,0.00013995,3]
[330729816,1719741035413,-642.17,0.00013995,3]
[330729817,1719741035422,-500.0,0.00013995,3]
[330729818,1719741035433,-500.0,0.00013995,3]
[330729819,1719741035443,-500.0,0.00013995,3]
[330729820,1719741035454,-553.32,0.00013995,3]
[330729821,1719741035465,-500.0,0.00013995,3]
[330729822,1719741035475,-500.0,0.00013995,3]
[330729823,1719741035485,-562.25,0.00013995,3]
[330729824,1719741035495,-500.0,0.00013995,3]
[330729825,1719741035506,-500.0,0.00013995,3]
[330729826,1719741035516,-520.47,0.00013995,3]
[330729827,1719741035525,-500.0,0.00013995,3]
[330729828,1719741035534,-500.0,0.00013995,3]
[330729829,1719741035544,-563.22,0.00013995,3]
[330729830,1719741035553,-500.0,0.00013995,3]
[330729831,1719741035562,-500.0,0.00013995,3]
[330729832,1719741035574,-516.22708898,0.00013995,3]
[330729833,1719741035584,-1068.82,0.00013995,3]
[330729834,1719741035594,-500.0,0.00013995,3]
[330729835,1719741035604,-500.0,0.00013995,3]
[330729836,1719741035613,-507.43665755,0.00013995,3]
[330729837,1719741035623,-500.0,0.00013995,3]
[330729838,1719741035632,-500.0,0.00013995,3]
[330729839,1719741035642,-214.17226783,0.00013995,3]
[330729840,1719741035652,-500.0,0.00013995,3]
[330729841,1719741035662,-500.0,0.00013995,3]
[330729842,1719741035673,-500.0,0.00013995,3]
[330729843,1719741035683,-500.0,0.00013995,3]
[330729844,1719741035692,-500.0,0.00013995,3]
[330729845,1719741035701,-500.0,0.00013995,3]
[330729846,1719741035710,-5000.0,0.00013995,3]
[330729847,1719741035720,-500.0,0.00013995,3]
[330729848,1719741035730,-610.08,0.00013995,3]
[330729849,1719741035740,-500.0,0.00013995,3]
[330729850,1719741035750,-500.0,0.00013995,3]
[330729851,1719741035760,-500.0,0.00013995,3]
[330729852,1719741035770,-500.0,0.00013995,3]
[330729853,1719741035779,-500.0,0.00013995,3]
[330729854,1719741035788,-500.0,0.00013995,3]
[330729855,1719741035797,-500.0,0.00013995,3]
[330729856,1719741035807,-500.0,0.00013995,3]
[330729857,1719741035816,-500.0,0.00013995,3]
[330729858,1719741035826,-500.0,0.00013995,3]
[330729859,1719741035835,-1255.63,0.00013995,3]
[330729860,1719741035844,-500.0,0.00013995,3]
[330729861,1719741035854,-500.0,0.00013995,3]
[330729862,1719741035863,-500.0,0.00013995,3]
[330729863,1719741035873,-1564.9,0.00013995,3]
[330729864,1719741035883,-500.0,0.00013995,3]
[330729865,1719741035892,-708.41,0.00013995,3]
[330729866,1719741035907,-429.15758604,0.00013995,3]
[330729867,1719741035917,-500.0,0.00013995,3]
[330729868,1719741035927,-1114.13,0.00013995,3]
[330729869,1719741035937,-500.0,0.00013995,3]
[330729870,1719741035947,-500.0,0.00013995,3]
[330729871,1719741035957,-587.15,0.00013995,3]
[330729872,1719741035966,-500.0,0.00013995,3]
[330729873,1719741035976,-1739.4,0.00013995,3]
[330729874,1719741035987,-500.0,0.00013995,3]
[330729875,1719741035997,-500.0,0.00013995,3]
[330729876,1719741036008,-578.19,0.00013995,3]
[330729877,1719741036017,-516.39,0.00013995,3]
[330729878,1719741036027,-437.72546366,0.00013995,3]
[330729879,1719741036036,-500.0,0.00013995,3]
[330729880,1719741036046,-500.0,0.00013995,3]
[330729881,1719741036055,-902.01,0.00013995,3]
[330729882,1719741036065,-500.0,0.00013995,3]
[330729883,1719741036075,-260.48229426,0.00013995,3]
[330729884,1719741036084,-500.0,0.00013995,3]
[330729885,1719741036094,-972.13,0.00013995,3]
[330729886,1719741036104,-500.0,0.00013995,3]
[330729887,1719741036113,-500.0,0.00013995,3]
[330729888,1719741036123,-500.0,0.00013995,3]
[330729889,1719741036133,-360.26902046,0.00013995,3]
[330729890,1719741036142,-500.0,0.00013995,3]
[330729891,1719741036151,-500.0,0.00013995,3]
[330729892,1719741036160,-500.0,0.00013995,3]
[330729893,1719741036170,-500.0,0.00013995,3]
[330729894,1719741036179,-695.4,0.00013995,3]
[330729895,1719741036189,-500.0,0.00013995,3]
[330729896,1719741036199,-500.0,0.00013995,3]
[330729897,1719741036209,-500.0,0.00013995,3]
[330729898,1719741036219,-500.0,0.00013995,3]
[330729899,1719741036228,-500.0,0.00013995,3]
[330729900,1719741036238,-500.0,0.00013995,3]
[330729901,1719741036247,-500.0,0.00013995,3]
[330729902,1719741036258,-500.0,0.00013995,3]
[330729903,1719741036268,-500.0,0.00013995,3]
[330729904,1719741036278,-500.0,0.00013995,3]
[330729905,1719741036287,-500.0,0.00013995,3]
[330729906,1719741036296,-500.0,0.00013995,3]
[330729907,1719741036305,-959.58,0.00013995,3]
[330729908,1719741036315,-309.94574037,0.00013995,3]
[330729909,1719741036325,-500.0,0.00013995,3]
[330729910,1719741036335,-617.56,0.00013995,3]
[330729911,1719741036345,-500.0,0.00013995,3]
[330729912,1719741036354,-500.0,0.00013995,3]
[330729913,1719741036364,-500.0,0.00013995,3]
[330729914,1719741036374,-500.0,0.00013995,3]
[330729915,1719741036384,-500.0,0.00013995,3]
[330729916,1719741036393,-500.0,0.00013995,3]
[330729917,1719741036402,-500.0,0.00013995,3]
[330729918,1719741036412,-860.21,0.00013995,3]
[330729919,1719741036421,-500.0,0.00013995,3]
[330729920,1719741036430,-500.0,0.00013995,3]
[330729921,1719741036439,-500.0,0.00013995,3]
[330729922,1719741036448,-500.0,0.00013995,3]
[330729923,1719741036457,-500.0,0.00013995,3]
[330729924,1719741036467,-500.0,0.00013995,3]
[330729925,1719741036476,-1380.0,0.00013995,3]
[330729926,1719741036486,-500.0,0.00013995,3]
[330729927,1719741036495,-1226.72,0.00013995,3]
[330729928,1719741036506,-2512.71,0.00013995,3]
[330729929,1719741036515,-726.19,0.00013995,3]
[330729930,1719741036524,-500.0,0.00013995,3]
[330729931,1719741036532,-500.0,0.00013995,3]
[330729932,1719741036541,-606.95943086,0.00013995,3]
[330729933,1719741036551,-500.0,0.00013995,3]
[330729934,1719741036561,-595.07813864,0.00013995,3]
[330729935,1719741036571,-500.0,0.00013995,3]
[330729936,1719741036580,-500.0,0.00013995,3]
[330729937,1719741036590,-500.0,0.00013995,3]
[330729938,1719741036600,-500.0,0.00013995,3]
[330729939,1719741036609,-500.0,0.00013995,3]
[330729940,1719741036619,-505.42,0.00013995,2]
[330729941,1719741036628,-500.0,0.00013995,3]
[330729942,1719741036637,-500.0,0.00013995,3]
[330729943,1719741036647,-1403.76,0.00013995,3]
[330729944,1719741036657,-500.0,0.00013995,3]
[330729945,1719741036666,-500.0,0.00013995,3]
[330729946,1719741036675,-329.13206872,0.00013995,3]
[330729947,1719741036686,-500.0,0.00013995,3]
[330729948,1719741036695,-500.0,0.00013995,3]
[330729949,1719741036705,-500.0,0.00013995,3]
[330729950,1719741036715,-500.0,0.00013995,3]
[330729951,1719741036724,-500.0,0.00013995,3]
[330729952,1719741036733,-500.0,0.00013995,3]
[330729953,1719741036743,-508.18,0.00013995,3]
[330729954,1719741036753,-500.0,0.00013995,3]
[330729955,1719741036763,-500.0,0.00013995,3]
[330729956,1719741036773,-500.0,0.00013995,3]
[330729957,1719741036782,-500.0,0.00013995,3]
[330729958,1719741036792,-500.0,0.00013995,3]
[330729959,1719741036801,-500.0,0.00013995,3]
[330729960,1719741036811,-500.0,0.00013995,3]
[330729961,1719741036820,-500.0,0.00013995,3]
[330729962,1719741036830,-500.0,0.00013995,3]
[330729963,1719741036841,-500.0,0.00013995,3]
[330729964,1719741036850,-500.0,0.00013995,3]
[330729965,1719741036860,-764.32,0.00013995,3]
[330729966,1719741036870,-500.0,0.00013995,3]
[330729967,1719741036879,-500.0,0.00013995,3]
[330729968,1719741036888,-500.0,0.00013995,3]
[330729969,1719741036900,-500.0,0.00013995,3]
[330729970,1719741036912,-331.48454005,0.00013995,3]
[330729971,1719741036922,-500.0,0.00013995,3]
[330729972,1719741036931,-500.0,0.00013995,3]
[330729973,1719741036942,-500.0,0.00013995,3]
[330729974,1719741036951,-628.49,0.00013995,3]
[330729975,1719741036960,-500.0,0.00013995,3]
[330729976,1719741036970,-500.0,0.00013995,3]
[330729977,1719741036980,-500.0,0.00013995,3]
[330729978,1719741036992,-500.0,0.00013995,3]
[330729979,1719741037002,-500.0,0.00013995,3]
[330729980,1719741037011,-500.0,0.00013995,3]
[330729981,1719741037021,-503.41,0.00013995,3]
[330729982,1719741037030,-500.0,0.00013995,3]
[330729983,1719741037040,-500.0,0.00013995,3]
[330729984,1719741037049,-500.0,0.00013995,3]
[330729985,1719741037059,-500.0,0.00013995,3]
[330729986,1719741037069,-500.0,0.00013995,3]
[330729987,1719741037079,-500.0,0.00013995,3]
[330729988,1719741037088,-633.7,0.00013995,3]
[330729989,1719741037097,-556.75,0.00013995,3]
[330729990,1719741037107,-500.0,0.00013995,3]
[330729991,1719741037117,-500.0,0.00013995,3]
[330729992,1719741037127,-826.12,0.00013995,3]
[330729993,1719741037136,-500.0,0.00013995,3]
[330729994,1719741037146,-500.0,0.00013995,3]
[330729995,1719741037155,-500.0,0.00013995,3]
[330729996,1719741037164,-500.0,0.00013995,3]
[330729997,1719741037174,-500.0,0.00013995,3]
[330729998,1719741037183,-500.0,0.00013995,3]
[330729999,1719741037193,-1284.1,0.00013995,3]
[330730000,1719741037202,-500.0,0.00013995,3]
[330730001,1719741037211,-469.16731386,0.00013995,3]
[330730002,1719741037221,-500.0,0.00013995,3]
[330730003,1719741037231,-1896.67,0.00013995,3]
[330730004,1719741037240,-500.0,0.00013995,3]
[330730005,1719741037250,-500.0,0.00013995,3]
[330730006,1719741037263,-996.54,0.00013995,3]
[330730007,1719741037272,-500.0,0.00013995,3]
[330730008,1719741037281,-500.0,0.00013995,3]
[330730009,1719741037291,-500.0,0.00013995,3]
[330730010,1719741037300,-500.0,0.00013995,3]
[330730011,1719741037310,-500.0,0.00013995,3]
[330730012,1719741037319,-500.0,0.00013995,3]
[330730013,1719741037329,-500.0,0.00013995,3]
[330730014,1719741037339,-500.0,0.00013995,3]
[330730015,1719741037349,-1106.49,0.00013995,3]
[330730016,1719741037358,-500.0,0.00013995,3]
[330730017,1719741037368,-500.0,0.00013995,3]
[330730018,1719741037377,-521.56232813,0.00013995,3]
[330730019,1719741037387,-500.0,0.00013995,3]
[330730020,1719741037396,-543.45,0.00013995,3]
[330730021,1719741037406,-500.0,0.00013995,3]
[330730022,1719741037415,-723.02,0.00013995,3]
[330730023,1719741037426,-500.0,0.00013995,3]
[330730024,1719741037436,-500.0,0.00013995,3]
[330730025,1719741037446,-500.0,0.00013995,3]
[330730026,1719741037456,-1023.72,0.00013995,3]
[330730027,1719741037466,-500.0,0.00013995,3]
[330730028,1719741037475,-500.0,0.00013995,3]
[330730029,1719741037485,-765.04,0.00013995,3]
[330730030,1719741037495,-500.0,0.00013995,3]
[330730031,1719741037506,-500.0,0.00013995,3]
[330730032,1719741037517,-500.0,0.00013995,3]
[330730033,1719741037526,-500.0,0.00013995,3]
[330730034,1719741037536,-500.0,0.00013995,3]
[330730035,1719741037547,-793.86,0.00013995,3]
[330730036,1719741037556,-500.0,0.00013995,3]
[330730037,1719741037566,-725.0,0.00013995,3]
[330730038,1719741037575,-500.0,0.00013995,3]
[330730039,1719741037585,-500.0,0.00013995,3]
[330730040,1719741037595,-500.0,0.00013995,3]
[330730041,1719741037604,-1160.01,0.00013995,3]
[330730042,1719741037615,-500.0,0.00013995,3]
[330730043,1719741037624,-539.24263898,0.00013995,3]
[330730044,1719741037634,-500.0,0.00013995,3]
[330730045,1719741037644,-1043.79,0.00013995,3]
[330730046,1719741037655,-500.0,0.00013995,3]
[330730047,1719741037665,-500.0,0.00013995,3]
[330730048,1719741037675,-534.75867316,0.00013995,3]
[330730049,1719741037685,-539.5,0.00013995,3]
[330730050,1719741037695,-500.0,0.00013995,3]
[330730051,1719741037705,-500.0,0.00013995,3]
[330730052,1719741037714,-526.89685168,0.00013995,3]
[330730053,1719741037724,-500.0,0.00013995,3]
[330730054,1719741037734,-500.0,0.00013995,3]
[330730055,1719741037745,-500.0,0.00013995,3]
[330730056,1719741037755,-798.49,0.00013995,3]
[330730057,1719741037765,-500.0,0.00013995,3]
[330730058,1719741037776,-500.0,0.00013995,3]
[330730059,1719741037786,-500.0,0.00013995,3]
[330730060,1719741037796,-500.0,0.00013995,3]
[330730061,1719741037806,-500.0,0.00013995,3]
[330730062,1719741037817,-117.07734678,0.00013995,3]
[330730083,1719741038657,-382.92265322,0.00013995,3]
[330730084,1719741038667,-500.0,0.00013995,3]
[330730085,1719741038677,-467.12258425,0.00013995,3]
[330730086,1719741038702,-32.87741575,0.00013995,3]
[330730087,1719741038711,-500.0,0.00013995,3]
[330730088,1719741038722,-500.0,0.00013995,3]
[330730089,1719741038732,-967.43,0.00013995,3]
[330730090,1719741038741,-500.0,0.00013995,3]
[330730091,1719741038753,-500.0,0.00013995,3]
[330730092,1719741038762,-61.92653218,0.00013995,3]
[330730093,1719741038775,-438.07346782,0.00013995,3]
[330730094,1719741038785,-500.0,0.00013995,3]
[330730095,1719741038795,-262.14905457,0.00013995,3]
[330730096,1719741038807,-237.85094543,0.00013995,3]
[330730097,1719741038816,-426.18853554,0.00013995,3]
[330730098,1719741038828,-73.81146446,0.00013995,3]
[330730099,1719741038838,-500.0,0.00013995,3]
[330730100,1719741038847,-297.74127944,0.00013995,3]
[330730101,1719741038859,-202.25872056,0.00013995,3]
[330730102,1719741038868,-500.0,0.00013995,3]
[330730103,1719741038879,-500.0,0.00013995,3]
[330730104,1719741038888,-500.0,0.00013995,3]
[330730105,1719741038901,-44.72298619,0.00013995,3]
[330730106,1719741038913,-455.27701381,0.00013995,3]
[330730107,1719741038923,-500.0,0.00013995,3]
[330730108,1719741038932,-131.83198936,0.00013995,3]
[330730109,1719741038945,-368.16801064,0.00013995,3]
[330730110,1719741038955,-593.97465543,0.00013995,3]
[330730111,1719741038964,-500.0,0.00013995,3]
[330730112,1719741038975,-500.0,0.00013995,3]
[330730113,1719741038984,-3530.1,0.00013996,3]
[330730114,1719741038994,-520.36,0.00013996,3]
[330730115,1719741039004,-936.56787667,0.00013996,3]
[330730116,1719741039016,-70.13212333,0.00013996,3]
[330730117,1719741039027,-1436.09,0.00013996,3]
[330730118,1719741039037,-1705.01,0.00013996,3]
[330730119,1719741039048,-153.63617749,0.00013996,3]
[330730123,1719741039849,-437.70943335,0.00013516,2]
[330730124,1719741039861,-87.30349761,0.00013516,2]
[330730125,1719741039871,-500.0,0.00013736,2]
[330730126,1719741039881,-364.94342445,0.00013899,2]
[330730127,1719741039891,-500.0,0.00013995,3]
[330730128,1719741039903,-477.43726973,0.00013995,3]